bitfinex/quotes_SOLUSD_20250829
["timestamp","ask_amount","ask_price","bid_price","bid_amount"]
[1756497361909,3.6641625,203.54,203.53,0.03]
[1756497362682,3.6641625,203.56,203.53,0.03]
[1756497362889,3.9611625,203.55,203.54,9.44888068]
[1756497363501,3.96985372,203.55,203.54,14.36191988]
[1756497363705,0.71,203.65,203.54,26.64451789]
[1756497363903,3.67305454,203.64,203.6,8.76888068]
[1756497364080,0.71,203.63,203.56,0.68]
[1756497364289,8.76888068,203.6,203.57,39.44]
[1756497364519,0.71,203.6,203.57,39.44]
[1756497364895,0.71,203.6,203.55,8.76888068]
[1756497365105,9.47888068,203.6,203.55,48.20888068]
[1756497365485,9.47888068,203.6,203.56,4.91255649]
[1756497365721,8.76888068,203.58,203.54,39.44]
[1756497365892,8.76888068,203.59,203.54,39.44]
[1756497366092,9.47888068,203.58,203.54,39.44]
[1756497366301,26.71,203.6,203.55,9.44888068]
[1756497366488,34.76888068,203.6,203.55,9.44888068]
[1756497366689,26.0,203.62,203.56,9.44888068]
[1756497366892,34.76888068,203.62,203.56,9.44888068]
[1756497367117,0.71,203.61,203.56,8.76888068]
[1756497367408,34.76888068,203.62,203.57,4.91231517]
[1756497367409,0.71,203.6,203.57,4.91231517]
[1756497367604,0.71,203.59,203.57,4.91231517]
[1756497369715,14.30559401,203.61,203.55,4.91279783]
[1756497369900,5.48093279,203.59,203.55,4.91279783]
[1756497370096,0.71,203.58,203.53,10.42419846]
[1756497370502,0.71,203.57,203.53,4.94326567]
[1756497371012,19.0765268,203.6,203.55,5.48093279]
[1756497371226,31.48093279,203.61,203.55,6.16093279]
[1756497371389,0.71,203.59,203.54,5.48093279]
[1756497371585,0.71,203.59,203.54,6.16093279]
[1756497371816,0.71,203.59,203.55,4.91279783]
[1756497372797,0.71,203.59,203.55,5.59279783]
[1756497372991,19.0765268,203.62,203.56,6.16093279]
[1756497373197,19.7865268,203.62,203.56,6.16093279]
[1756497373406,5.48093279,203.61,203.56,0.68]
[1756497373725,6.19093279,203.61,203.56,0.68]
[1756497374118,0.71,203.61,203.56,6.16093279]
[1756497374899,0.71,203.61,203.57,4.91231517]
[1756497375120,26.0,203.63,203.57,11.07324796]
[1756497375301,31.48093279,203.63,203.57,11.07324796]
[1756497375504,5.48093279,203.62,203.57,5.59231517]
[1756497375816,31.48093279,203.63,203.58,0.68]
[1756497376398,32.19093279,203.63,203.58,0.68]
[1756497376612,0.71,203.62,203.58,0.68]
[1756497377021,13.65559401,203.66,203.59,4.9118326]
[1756497377196,13.59559401,203.64,203.59,11.07276539]
[1756497377529,19.7865268,203.64,203.59,5.5918326]
[1756497377822,0.71,203.63,203.59,11.07276539]
[1756497378230,19.0765268,203.64,203.59,11.07276539]
[1756497378403,26.06,203.66,203.59,11.07276539]
[1756497378404,0.06,203.66,203.61,5.48093279]
[1756497378602,0.77,203.66,203.61,6.16093279]
[1756497378833,32.25093279,203.66,203.61,6.16093279]
[1756497378993,26.06,203.66,203.62,6.16093279]
[1756497379198,26.77,203.66,203.63,4.91086775]
[1756497379399,0.77,203.66,203.63,4.91086775]
[1756497379838,0.06,203.66,203.63,5.59086775]
[1756497380199,0.06,203.66,203.63,11.07180054]
[1756497380437,0.06,203.66,203.65,5.48093279]
[1756497380800,0.06,203.66,203.65,6.16093279]
[1756497381246,0.06,203.66,203.65,11.07131825]
[1756497381736,0.06,203.66,203.65,10.39131825]
[1756497382597,0.06,203.66,203.65,11.07131825]
[1756497382924,1e-08,203.66,203.65,11.07131825]
[1756497384899,1e-08,203.68,203.65,11.07131825]
[1756497385127,1e-08,203.68,203.67,5.48093279]
[1756497385331,1e-08,203.68,203.67,10.39083606]
[1756497385628,1e-08,203.69,203.67,11.07083606]
[1756497385825,1e-08,203.69,203.68,6.16093279]
[1756497386400,0.06,203.73,203.68,11.64186558]
[1756497386624,0.06,203.73,203.67,44.19275214]
[1756497386625,0.06,203.73,203.72,5.48093279]
[1756497386824,0.06,203.73,203.72,44.90093279]
[1756497387022,1e-08,203.73,203.72,45.58093279]
[1756497387402,1e-08,203.73,203.72,4.90869821]
[1756497387603,1e-08,203.73,203.72,10.389631]
[1756497390009,0.71000001,203.73,203.71,30.9089236]
[1756497390204,0.71,203.72,203.68,5.48093279]
[1756497390440,0.71,203.72,203.69,5.48093279]
[1756497390633,1e-08,203.73,203.69,5.48093279]
[1756497390634,1e-08,203.73,203.71,5.48093279]
[1756497390829,1e-08,203.73,203.72,5.48093279]
[1756497391043,1e-08,203.73,203.71,5.48093279]
[1756497391413,1e-08,203.73,203.72,4.90869821]
[1756497393040,1e-08,203.73,203.7,10.39011295]
[1756497394150,1e-08,203.73,203.7,6.17093279]
[1756497394549,5.48093279,203.71,203.69,4.90942117]
[1756497394719,0.70000001,203.73,203.7,39.42]
[1756497394920,1e-08,203.73,203.7,39.42]
[1756497395131,0.70000001,203.73,203.7,39.42]
[1756497396051,5.48093279,203.72,203.7,39.42]
[1756497396557,6.18093279,203.72,203.7,39.42]
[1756497396727,5.48093279,203.72,203.7,44.32907836]
[1756497396927,5.48093279,203.72,203.7,39.42]
[1756497397466,5.48093279,203.71,203.7,39.42]
[1756497397770,5.48093279,203.71,203.7,44.32918016]
[1756497398949,1e-08,203.73,203.7,44.32918016]
[1756497398950,5.48093279,203.72,203.7,44.32918016]
[1756497399450,5.4809328,203.73,203.7,45.01918016]
[1756497399626,5.48093279,203.72,203.7,45.01918016]
[1756497400251,5.4809328,203.73,203.7,45.01918016]
[1756497400751,1e-08,203.73,203.7,45.01918016]
[1756497401040,5.4809328,203.73,203.7,45.01918016]
[1756497401291,1e-08,203.73,203.71,0.69]
[1756497401852,5.4809328,203.73,203.7,44.32918016]
[1756497402032,5.48093279,203.72,203.7,45.01918016]
[1756497402230,5.4809328,203.73,203.7,45.01918016]
[1756497402449,1e-08,203.73,203.7,45.01918016]
[1756497402638,5.4809328,203.73,203.7,45.01918016]
[1756497403051,1e-08,203.73,203.7,45.01918016]
[1756497404560,1e-08,203.73,203.7,44.35918016]
[1756497404747,1e-08,203.73,203.72,5.48093279]
[1756497405233,1e-08,203.73,203.72,6.17093279]
[1756497405435,1e-08,203.73,203.72,0.69]
[1756497405833,1e-08,203.73,203.72,6.17093279]
[1756497406931,1e-08,203.73,203.72,11.079631]
[1756497407435,1e-08,203.73,203.72,44.30869821]
[1756497407861,1e-08,203.73,203.72,49.789631]
[1756497408166,1e-08,203.73,203.72,50.479631]
[1756497408379,6.1809328,203.73,203.72,4.90869821]
[1756497408553,1e-08,203.73,203.72,44.99869821]
[1756497408756,1e-08,203.73,203.72,50.479631]
[1756497410462,1e-08,203.73,203.72,44.99869821]
[1756497410659,1e-08,203.73,203.59,0.69]
[1756497410660,13.59559401,203.68,203.59,0.69]
[1756497410879,13.59559401,203.68,203.51,2.56650004]
[1756497410880,0.51,203.67,203.56,4.91255649]
[1756497411178,19.0765268,203.59,203.55,0.03]
[1756497411475,0.51,203.66,203.55,0.03]
[1756497411476,5.48093279,203.56,203.55,0.03]
[1756497411675,0.51,203.58,203.55,0.03]
[1756497411879,5.48093279,203.56,203.55,0.03]
[1756497412677,5.48093279,203.58,203.55,4.94271241]
[1756497412876,5.48093279,203.61,203.57,4.91231517]
[1756497413079,5.48093279,203.61,203.57,5.60231517]
[1756497413267,5.48093279,203.6,203.57,5.60231517]
[1756497414076,5.48093279,203.59,203.57,4.91231517]
[1756497415174,5.48093279,203.59,203.55,40.01]
[1756497415175,5.48093279,203.59,203.56,4.91255649]
[1756497415369,5.48093279,203.59,203.56,5.60255649]
[1756497415978,26.0,203.63,203.57,0.69]
[1756497416175,5.48093279,203.59,203.56,17.19394772]
[1756497416483,5.48093279,203.6,203.56,17.19394772]
[1756497416686,5.48093279,203.6,203.57,0.69]
[1756497416892,5.48093279,203.61,203.58,39.98]
[1756497417067,5.48093279,203.61,203.59,4.9118326]
[1756497417281,5.48093279,203.6,203.59,4.9118326]
[1756497418266,5.48093279,203.6,203.58,44.89204829]
[1756497418464,26.51,203.63,203.58,45.58204829]
[1756497418465,5.48093279,203.61,203.58,45.58204829]
[1756497418672,26.0,203.63,203.58,45.58204829]
[1756497418891,5.48093279,203.62,203.58,45.58204829]
[1756497419278,5.48093279,203.61,203.58,4.91204829]
[1756497419996,0.51,203.6,203.57,4.91231122]
[1756497420174,5.48093279,203.58,203.55,4.94278317]
[1756497420488,5.48093279,203.56,203.55,4.94278317]
[1756497420688,0.51,203.6,203.55,4.94278317]
[1756497420880,5.48093279,203.57,203.55,4.94278317]
[1756497421079,5.48093279,203.58,203.57,4.91231517]
[1756497421491,5.48093279,203.59,203.57,4.91231517]
[1756497421998,5.48093279,203.6,203.57,4.91231517]
[1756497423106,0.51,203.67,203.59,4.9118326]
[1756497423284,5.48093279,203.63,203.6,39.9]
[1756497423479,5.48093279,203.62,203.6,39.9]
[1756497423670,5.48093279,203.61,203.6,39.9]
[1756497425594,5.48093279,203.61,203.58,44.81207387]
[1756497425783,5.48093279,203.6,203.58,44.81207387]
[1756497427002,5.48093279,203.59,203.57,0.03]
[1756497427182,5.48093279,203.58,203.57,0.03]
[1756497427595,0.51,203.65,203.57,0.72]
[1756497427778,5.48093279,203.62,203.57,6.20093279]
[1756497428098,5.48093279,203.62,203.58,0.69]
[1756497428407,5.48093279,203.62,203.59,0.69]
[1756497428708,5.48093279,203.62,203.6,4.91159135]
[1756497429400,5.48093279,203.63,203.6,5.60159135]
[1756497429893,5.48093279,203.62,203.6,4.91159135]
[1756497430077,5.48093279,203.61,203.58,4.91188211]
[1756497430277,5.48093279,203.59,203.57,4.94226415]
[1756497430498,0.51,203.61,203.57,4.94226415]
[1756497430683,5.48093279,203.6,203.59,4.9118326]
[1756497430884,5.48093279,203.61,203.59,4.9118326]
[1756497431174,13.59559401,203.65,203.59,4.9118326]
[1756497431392,5.48093279,203.64,203.59,44.7318326]
[1756497431589,5.48093279,203.63,203.59,44.7318326]
[1756497431797,5.48093279,203.63,203.6,0.69]
[1756497432484,5.48093279,203.63,203.61,4.91135013]
[1756497432895,5.48093279,203.62,203.59,39.82]
[1756497433106,5.48093279,203.62,203.57,0.03]
[1756497433107,5.48093279,203.6,203.57,0.03]
[1756497433488,5.48093279,203.59,203.57,0.03]
[1756497434590,5.48093279,203.59,203.57,4.94231517]
[1756497434987,5.48093279,203.58,203.57,0.03]
[1756497435196,19.5865268,203.58,203.57,0.03]
[1756497436013,5.48093279,203.58,203.57,0.03]
[1756497438935,9.36574177,203.69,203.58,4.91207387]
[1756497439091,5.48093279,203.64,203.59,6.17093279]
[1756497439402,5.48093279,203.6,203.58,4.91207387]
[1756497439720,5.48093279,203.59,203.58,4.91207387]
[1756497440327,5.48093279,203.59,203.57,0.03]
[1756497440620,5.48093279,203.58,203.57,0.03]
[1756497440992,5.48093279,203.61,203.57,0.72]
[1756497441195,5.48093279,203.61,203.58,0.69]
[1756497441402,5.48093279,203.61,203.57,0.03]
[1756497441614,5.48093279,203.61,203.59,0.69]
[1756497442012,5.48093279,203.61,203.57,5.63231517]
[1756497442320,5.48093279,203.62,203.58,0.69]
[1756497442898,0.2976,203.61,203.59,0.69]
[1756497444010,0.2976,203.61,203.6,0.69]
[1756497445223,0.06,203.7,203.6,6.17093279]
[1756497445431,5.48093279,203.69,203.63,5.48093279]
[1756497445908,5.48093279,203.69,203.64,0.69]
[1756497446114,5.48093279,203.69,203.65,4.91038546]
[1756497446441,5.48093279,203.68,203.65,4.91038546]
[1756497446830,5.54093279,203.67,203.64,0.69]
[1756497447333,5.54093279,203.67,203.64,5.60056506]
[1756497447637,5.48093279,203.65,203.61,4.91135013]
[1756497447802,5.48093279,203.64,203.61,5.60135013]
[1756497448009,5.48093279,203.65,203.61,5.60135013]
[1756497448321,5.48093279,203.64,203.61,5.60135013]
[1756497448510,5.48093279,203.65,203.61,5.60135013]
[1756497448707,5.48093279,203.65,203.61,4.91135013]
[1756497449029,5.48093279,203.65,203.62,0.69]
[1756497449246,5.54093279,203.67,203.63,0.69]
[1756497449418,5.48093279,203.66,203.61,4.91135013]
[1756497449739,5.54093279,203.67,203.62,0.69]
[1756497449923,5.54093279,203.67,203.63,0.69]
[1756497450332,5.54093279,203.67,203.61,10.39228292]
[1756497450333,5.48093279,203.65,203.61,5.60135013]
[1756497450636,0.06,203.67,203.58,4.91207387]
[1756497450637,5.48093279,203.62,203.58,4.91207387]
[1756497450928,5.48093279,203.6,203.57,4.94226344]
[1756497451422,5.48093279,203.61,203.58,0.71]
[1756497451622,5.48093279,203.64,203.59,5.48093279]
[1756497451823,5.48093279,203.63,203.6,0.71]
[1756497452229,5.48093279,203.63,203.58,0.71]
[1756497452526,5.48093279,203.61,203.58,0.71]
[1756497452733,5.48093279,203.61,203.57,4.94226344]
[1756497452734,13.65559401,203.67,203.57,4.94226344]
[1756497452925,5.48093279,203.64,203.59,0.71]
[1756497453131,5.48093279,203.63,203.59,0.71]
[1756497453434,5.48093279,203.6,203.57,4.94226344]
[1756497453636,13.65559401,203.67,203.59,5.48093279]
[1756497453848,5.48093279,203.66,203.6,6.19093279]
[1756497454131,5.48093279,203.65,203.61,0.71]
[1756497454308,5.48093279,203.64,203.62,4.91110892]
[1756497454910,5.48093279,203.65,203.62,4.91110892]
[1756497455838,5.48093279,203.63,203.6,5.62153713]
[1756497456020,0.57,203.67,203.58,4.91207387]
[1756497456021,5.48093279,203.62,203.58,4.91207387]
[1756497456230,5.48093279,203.61,203.58,44.67207387]
[1756497456432,5.48093279,203.61,203.58,45.38207387]
[1756497457836,5.48093279,203.6,203.58,44.67207387]
[1756497458042,5.48093279,203.61,203.58,45.38207387]
[1756497458218,5.48093279,203.61,203.59,0.71]
[1756497458613,5.48093279,203.61,203.59,5.62177581]
[1756497460039,26.0,203.65,203.59,5.62177581]
[1756497460451,5.48093279,203.61,203.59,5.62177581]
[1756497460628,26.0,203.65,203.59,5.62177581]
[1756497460827,5.48093279,203.63,203.59,5.62177581]
[1756497461029,0.06,203.61,203.6,0.71]
[1756497462640,0.06,203.61,203.6,5.62159135]
[1756497463125,0.06,203.64,203.6,23.38150252]
[1756497463330,0.06,203.64,203.61,0.71]
[1756497463651,0.06,203.64,203.62,45.14093279]
[1756497463950,0.06,203.64,203.63,0.71]
[1756497464142,5.54093279,203.64,203.6,89.99252435]
[1756497464331,5.54093279,203.64,203.61,40.37]
[1756497464648,5.54093279,203.64,203.62,4.91110892]
[1756497465022,0.06,203.64,203.61,39.66]
[1756497465247,0.06,203.64,203.6,4.9115472]
[1756497465248,5.48093279,203.62,203.6,4.9115472]
[1756497465431,5.48093279,203.61,203.59,39.64]
[1756497466636,5.48093279,203.61,203.59,44.55175115]
[1756497467141,0.2983,203.61,203.59,45.26175115]
[1756497467541,0.2983,203.61,203.6,0.71]
[1756497468139,6.28923279,203.61,203.57,0.03]
[1756497468341,5.48093279,203.58,203.57,0.03]
[1756497468728,5.48093279,203.58,203.57,0.74]
[1756497468934,5.48093279,203.59,203.57,0.74]
[1756497469135,5.48093279,203.58,203.57,0.03]
[1756497469351,5.48093279,203.59,203.57,0.74]
[1756497469562,0.2983,203.61,203.57,0.03]
[1756497469744,0.2983,203.61,203.58,0.71]
[1756497469945,5.48093279,203.59,203.57,0.03]
[1756497470141,0.8083,203.61,203.57,0.03]
[1756497470142,5.48093279,203.58,203.57,0.03]
[1756497471369,0.8083,203.61,203.57,0.03]
[1756497471553,5.48093279,203.58,203.57,0.03]
[1756497471864,0.2983,203.61,203.58,0.71]
[1756497472034,5.48093279,203.6,203.58,0.71]
[1756497472234,5.48093279,203.59,203.57,39.69]
[1756497472435,5.48093279,203.58,203.57,39.69]
[1756497472632,5.48093279,203.58,203.57,44.60231517]
[1756497472865,5.48093279,203.58,203.57,0.03]
[1756497473157,13.89389401,203.61,203.57,0.03]
[1756497473363,5.48093279,203.58,203.57,0.03]
[1756497474135,5.99093279,203.58,203.57,0.03]
[1756497474441,5.48093279,203.58,203.57,0.03]
[1756497474841,0.2983,203.61,203.57,0.03]
[1756497475059,5.48093279,203.58,203.57,0.03]
[1756497475945,5.99093279,203.58,203.57,0.03]
[1756497476144,5.48093279,203.58,203.57,0.03]
[1756497476863,10.90300666,203.58,203.57,0.03]
[1756497477034,24.49860067,203.58,203.57,0.03]
[1756497477756,19.5865268,203.58,203.57,0.03]
[1756497477959,13.59559401,203.55,203.52,0.03]
[1756497478261,45.0765268,203.53,203.52,0.03]
[1756497478746,19.0765268,203.53,203.52,0.03]
[1756497479439,45.0765268,203.53,203.52,0.03]
[1756497480252,39.59559401,203.53,203.52,0.03]
[1756497480446,45.0765268,203.53,203.52,0.03]
[1756497480658,13.59559401,203.52,203.43,0.66]
[1756497480969,59.14155876,203.51,203.44,4.91544854]
[1756497481165,59.14155876,203.51,203.37,4.53451958]
[1756497481166,45.87596738,203.51,203.37,4.53451958]
[1756497481348,45.87596738,203.51,203.31,0.10640334]
[1756497481349,13.59559401,203.37,203.31,0.10640334]
[1756497481666,26.40555969,203.37,203.32,4.91813002]
[1756497481961,26.40555969,203.37,203.31,0.76640334]
[1756497481962,22.73522397,203.37,203.31,5.68499086]
[1756497482166,19.0765268,203.37,203.31,5.68499086]
[1756497482547,19.0765268,203.37,203.31,0.10640334]
[1756497482548,5.48093279,203.37,203.31,0.10640334]
[1756497482758,5.48093279,203.37,203.34,0.66]
[1756497482943,5.48093279,203.37,203.36,5.67738788]
[1756497483148,5.48093279,203.37,203.36,0.76]
[1756497483666,13.59559401,203.41,203.36,0.76]
[1756497483877,5.48093279,203.42,203.36,11.15832067]
[1756497484042,13.59559401,203.36,203.31,0.10640334]
[1756497484243,39.59559401,203.28,203.21,0.66]
[1756497484450,5.48093279,203.22,203.21,0.66]
[1756497484639,5.48093279,203.22,203.18,0.66]
[1756497484842,5.48093279,203.2,203.17,5.03186769]
[1756497485074,5.48093279,203.19,203.17,5.03186769]
[1756497485367,8.8043749,203.19,203.18,0.66]
[1756497485956,8.8043749,203.2,203.18,0.66]
[1756497486153,8.8043749,203.19,203.18,0.66]
[1756497486354,8.8043749,203.2,203.17,5.03182864]
[1756497486562,8.8043749,203.22,203.17,5.03182864]
[1756497486754,8.8043749,203.23,203.17,26.14116982]
[1756497486963,8.8043749,203.23,203.19,4.92150204]
[1756497487149,26.0,203.28,203.2,0.66]
[1756497487466,8.8043749,203.22,203.2,0.66]
[1756497487671,26.0,203.2,203.17,0.10988496]
[1756497487854,22.39996891,203.18,203.17,0.10988496]
[1756497489266,8.8043749,203.18,203.17,0.10988496]
[1756497491858,0.2983,203.2,203.17,0.76988496]
[1756497492057,8.8043749,203.19,203.18,0.66]
[1756497492275,9.1026749,203.2,203.18,0.66]
[1756497492580,0.2983,203.2,203.19,0.66]
[1756497492963,0.2983,203.2,203.19,5.58150204]
[1756497495184,1e-08,203.2,203.19,14.38587694]
[1756497495582,1e-08,203.2,203.19,5.58150204]
[1756497495884,8.80437491,203.2,203.17,0.10988496]
[1756497496088,8.8043749,203.19,203.18,0.66]
[1756497496291,8.8043749,203.19,203.17,5.03174003]
[1756497496487,1e-08,203.2,203.17,13.83611493]
[1756497496783,1e-08,203.2,203.18,9.4643749]
[1756497496967,1e-08,203.2,203.18,0.66]
[1756497497162,8.80437491,203.2,203.19,0.66]
[1756497497378,8.80437491,203.2,203.17,0.10988496]
[1756497497583,8.8043749,203.19,203.17,0.10988496]
[1756497497798,8.8043749,203.19,203.17,5.03184003]
[1756497498165,8.8043749,203.18,203.17,5.69184003]
[1756497498360,8.8043749,203.19,203.17,5.69184003]
[1756497498605,8.8043749,203.19,203.17,5.03184003]
[1756497498892,8.8043749,203.19,203.17,5.69184003]
[1756497499194,8.8043749,203.18,203.17,5.69184003]
[1756497499694,13.59559401,203.24,203.17,5.69184003]
[1756497499894,8.8043749,203.18,203.17,0.10988496]
[1756497500389,8.8043749,203.18,203.17,5.03187147]
[1756497502485,8.8043749,203.18,203.17,5.69187147]
[1756497503283,13.59559401,203.24,203.17,5.69187147]
[1756497503486,8.8043749,203.18,203.17,5.69187147]
[1756497503865,8.8043749,203.2,203.17,5.69187147]
[1756497504193,26.0,203.25,203.18,0.66]
[1756497504361,8.8043749,203.21,203.18,0.66]
[1756497504905,8.8043749,203.21,203.19,0.66]
[1756497505071,8.8043749,203.21,203.2,0.66]
[1756497505274,41.06,203.29,203.2,0.66]
[1756497505606,8.8043749,203.23,203.2,0.66]
[1756497505807,80.65559401,203.29,203.2,0.66]
[1756497505808,8.8043749,203.24,203.2,0.66]
[1756497506579,8.8043749,203.25,203.2,9.4643749]
[1756497506783,8.8043749,203.26,203.22,4.92077551]
[1756497507091,8.8043749,203.26,203.23,0.66]
[1756497507286,8.8043749,203.26,203.24,0.66]
[1756497507486,8.8043749,203.26,203.22,4.92077551]
[1756497507676,8.8043749,203.26,203.25,0.66]
[1756497508309,17.62831504,203.34,203.25,0.66]
[1756497508310,8.8043749,203.28,203.25,5.5800492]
[1756497508473,8.8043749,203.28,203.26,0.66]
[1756497508673,26.0,203.31,203.25,0.66]
[1756497508891,8.8043749,203.27,203.25,0.66]
[1756497509774,26.0,203.31,203.26,0.66]
[1756497509978,8.8043749,203.29,203.27,0.66]
[1756497510186,8.8043749,203.28,203.24,40.92]
[1756497510380,8.8043749,203.27,203.24,41.58]
[1756497510579,8.8043749,203.26,203.25,0.7]
[1756497511101,8.8043749,203.28,203.25,0.7]
[1756497511300,8.8043749,203.26,203.21,40.9]
[1756497511594,8.8043749,203.23,203.22,0.7]
[1756497511795,8.8043749,203.25,203.22,0.7]
[1756497512096,8.8043749,203.25,203.23,0.7]
[1756497512295,8.8043749,203.25,203.21,40.9]
[1756497512296,8.8043749,203.24,203.21,45.82097493]
[1756497512472,8.8043749,203.25,203.23,0.7]
[1756497512670,13.59559401,203.31,203.23,0.7]
[1756497512900,8.8043749,203.25,203.23,0.7]
[1756497513579,8.8043749,203.26,203.23,0.7]
[1756497513784,13.59559401,203.31,203.24,0.7]
[1756497513974,8.8043749,203.26,203.24,0.7]
[1756497514298,8.8043749,203.27,203.25,4.9200492]
[1756497514498,26.0,203.31,203.25,5.6200492]
[1756497514814,8.8043749,203.28,203.25,5.6200492]
[1756497515287,8.8043749,203.28,203.23,8.8043749]
[1756497515288,8.8043749,203.26,203.23,0.7]
[1756497515477,8.8043749,203.27,203.23,80.3]
[1756497515676,8.8043749,203.27,203.23,79.6]
[1756497515891,8.8043749,203.27,203.24,0.7]
[1756497516086,8.8043749,203.25,203.2,5.62121318]
[1756497516288,8.8043749,203.22,203.19,4.92150204]
[1756497516488,8.8043749,203.23,203.21,0.7]
[1756497516996,8.8043749,203.22,203.19,5.62150204]
[1756497517181,8.8043749,203.22,203.2,0.73]
[1756497517373,18.51490189,203.29,203.2,0.73]
[1756497517577,8.8043749,203.24,203.2,0.73]
[1756497517907,8.8043749,203.24,203.21,4.92101766]
[1756497518086,8.8043749,203.24,203.21,5.62101766]
[1756497518286,0.3,203.23,203.21,5.62101766]
[1756497518694,0.3,203.23,203.22,0.7]
[1756497519196,9.1043749,203.23,203.22,0.7]
[1756497519380,0.3,203.23,203.22,0.7]
[1756497519781,0.3,203.23,203.22,5.62077551]
[1756497520509,3.93650776,203.23,203.22,5.62077551]
[1756497520711,3.93650776,203.23,203.2,0.03]
[1756497520712,0.3,203.23,203.21,4.92098092]
[1756497521014,9.1043749,203.23,203.22,0.7]
[1756497521589,9.1043749,203.23,203.2,0.03]
[1756497521798,8.8043749,203.21,203.2,0.03]
[1756497528613,0.3,203.23,203.2,0.03]
[1756497529007,8.8043749,203.21,203.2,0.03]
[1756497530608,0.3,203.23,203.2,0.03]
[1756497530806,0.3,203.23,203.21,0.7]
[1756497531213,0.3,203.23,203.21,9.5043749]
[1756497531393,0.3,203.23,203.22,0.7]
[1756497532202,0.06,203.31,203.23,13.59559401]
[1756497532401,0.06,203.31,203.27,5.49910658]
[1756497532619,0.06,203.31,203.28,4.9193231]
[1756497532801,0.06,203.31,203.28,5.6193231]
[1756497533000,0.06,203.31,203.29,0.7]
[1756497534122,0.06,203.31,203.3,5.49910658]
[1756497534502,0.06,203.31,203.3,0.7]
[1756497534696,0.06,203.31,203.3,5.61883915]
[1756497535114,0.06,203.31,203.3,11.11794573]
[1756497535325,0.06,203.31,203.3,14.40776039]
[1756497536098,0.06,203.31,203.3,54.90776039]
[1756497536835,0.06,203.31,203.3,5.61883915]
[1756497537008,0.06,203.31,203.3,46.09883915]
[1756497537208,0.06,203.31,203.3,54.88776039]
[1756497537740,8.84892124,203.37,203.32,8.78892124]
[1756497537903,0.06,203.37,203.33,0.7]
[1756497538227,0.06,203.37,203.34,40.48]
[1756497538832,0.06,203.37,203.35,4.9176297]
[1756497539230,0.06,203.37,203.36,0.7]
[1756497539798,0.06,203.37,203.35,4.9176297]
[1756497540240,0.06,203.37,203.35,45.3576297]
[1756497540437,0.06,203.37,203.36,9.48892124]
[1756497540806,1e-08,203.4,203.39,26.0]
[1756497541030,0.06,203.42,203.39,75.70058749]
[1756497541208,0.06,203.42,203.4,0.72]
[1756497541439,0.06,203.42,203.41,8.78892124]
[1756497541606,8.78892124,203.5,203.41,8.78892124]
[1756497541810,8.78892124,203.5,203.39,66.91166625]
[1756497541811,8.78892124,203.5,203.44,8.78892124]
[1756497542007,8.78892124,203.5,203.45,40.42]
[1756497542236,0.2,203.52,203.46,9.50892124]
[1756497542410,0.2,203.52,203.47,8.78892124]
[1756497542834,0.2,203.52,203.49,4.9142464]
[1756497543031,0.2,203.52,203.51,8.78892124]
[1756497543405,0.2,203.52,203.51,9.50892124]
[1756497543709,0.2,203.52,203.49,13.70316764]
[1756497543913,0.2,203.52,203.5,0.72]
[1756497544130,0.2,203.52,203.51,0.72]
[1756497544325,0.2,203.52,203.51,9.50892124]
[1756497544525,0.2,203.52,203.51,0.72]
[1756497544729,0.2,203.52,203.49,4.9142464]
[1756497544730,0.2,203.52,203.49,13.70316764]
[1756497544923,0.2,203.52,203.5,0.72]
[1756497545132,0.2,203.52,203.49,13.70316764]
[1756497545312,0.2,203.52,203.51,9.50892124]
[1756497545515,0.2,203.52,203.51,0.72]
[1756497546239,0.2,203.52,203.5,40.46]
[1756497546444,0.2,203.52,203.5,41.18]
[1756497546628,0.2,203.52,203.5,0.72]
[1756497546846,0.2,203.52,203.51,45.35376345]
[1756497547347,8.98892124,203.52,203.46,8.78892124]
[1756497547639,8.98892124,203.52,203.47,40.42]
[1756497547822,8.98892124,203.52,203.47,41.14]